[Event "Championnat d'Europe de Blitz"]
[Date "2024.12.09"]
[White "Maier, Christian"]
[Black "Baskin, Robert"]
[WhiteElo "2235"]
[BlackElo "2442"]
[Round "11.43"]
[Result "0-1"]
[TimeControl "180+2"]

1. e4 {[%emt 00:00:01] [%clk 00:03:02]} e5 {[%emt 00:00:02] [%clk 00:03:03]} 2.
Nf3 {[%emt 00:00:01] [%clk 00:03:03]} Nc6 {[%emt 00:00:01] [%clk 00:03:04]} 3.
Bb5 {[%emt 00:00:01] [%clk 00:03:04]} a6 {[%emt 00:00:01] [%clk 00:03:05]} 4.
Ba4 {[%emt 00:00:01] [%clk 00:03:05]} Bc5 {[%emt 00:00:05] [%clk 00:03:01]} 5.
c3 {[%emt 00:00:03] [%clk 00:03:04]} Nge7 {[%emt 00:00:02] [%clk 00:03:01]} 6.
d4 {[%emt 00:00:02] [%clk 00:03:04]} exd4 {[%emt 00:00:01] [%clk 00:03:02]} 7.
cxd4 {[%clk 00:03:05]} Bb4+ {[%emt 00:00:01] [%clk 00:03:02]} 8. Bd2 {[%emt
00:00:09] [%clk 00:02:59]} Bxd2+ {[%emt 00:00:03] [%clk 00:03:01]} 9. Qxd2
{[%emt 00:00:09] [%clk 00:02:52]} d5 {[%emt 00:00:02] [%clk 00:03:01]} 10. e5
{[%emt 00:00:16] [%clk 00:02:39]} O-O {[%emt 00:00:01] [%clk 00:03:01]} 11. O-O
{[%emt 00:00:10] [%clk 00:02:31]} Bg4 {[%emt 00:00:02] [%clk 00:03:01]} 12. Ne1
{[%emt 00:00:06] [%clk 00:02:26]} f6 {[%emt 00:00:25] [%clk 00:02:39]} 13. exf6
{[%emt 00:00:14] [%clk 00:02:14]} Rxf6 {[%emt 00:00:01] [%clk 00:02:40]} 14. h3
{[%emt 00:00:03] [%clk 00:02:13]} Bh5 {[%emt 00:00:07] [%clk 00:02:35]} 15. Nc3
{[%emt 00:00:06] [%clk 00:02:09]} Qd6 {[%emt 00:00:05] [%clk 00:02:32]} 16. Bd1
{[%emt 00:00:32] [%clk 00:01:39]} Bxd1 {[%emt 00:00:14] [%clk 00:02:20]} 17.
Rxd1 {[%clk 00:01:40]} Raf8 {[%emt 00:00:02] [%clk 00:02:20]} 18. Nc2 {[%emt
00:00:06] [%clk 00:01:36]} Nf5 {[%emt 00:00:18] [%clk 00:02:04]} 19. Qd3 {[%emt
00:00:09] [%clk 00:01:29]} Rg6 {[%emt 00:00:07] [%clk 00:01:58]} 20. Ne3 {[%emt
00:00:21] [%clk 00:01:10]} Nfxd4 {[%emt 00:00:07] [%clk 00:01:54]} 21. Kh1
{[%emt 00:00:43] [%clk 00:00:29]} Rh6 {[%emt 00:00:37] [%clk 00:01:19]} 22. Ng4
{[%emt 00:00:20] [%clk 00:00:11]} Rh4 {[%emt 00:00:33] [%clk 00:00:48]} 23. Ne2
{[%clk 00:00:12]} Nxe2 {[%emt 00:00:18] [%clk 00:00:32]} 24. Qxe2 {[%emt
00:00:01] [%clk 00:00:13]} d4 {[%emt 00:00:08] [%clk 00:00:26]} 25. Qe4 {[%clk
00:00:14]} Rh5 {[%emt 00:00:05] [%clk 00:00:24]} 26. Rfe1 {[%emt 00:00:02] [%clk
00:00:14]} Rhf5 {[%emt 00:00:03] [%clk 00:00:22]} 27. f3 {[%emt 00:00:02] [%clk
00:00:15]} h6 {[%emt 00:00:03] [%clk 00:00:21]} 28. Nf2 {[%emt 00:00:01] [%clk
00:00:16]} Re5 {[%emt 00:00:01] [%clk 00:00:22]} 29. Qg4 {[%emt 00:00:02] [%clk
00:00:16]} Rfe8 {[%emt 00:00:02] [%clk 00:00:22]} 30. Ne4 {[%emt 00:00:01] [%clk
00:00:18]} Qe7 {[%emt 00:00:01] [%clk 00:00:22]} 31. Rc1 {[%emt 00:00:03] [%clk
00:00:18]} Qe6 {[%emt 00:00:03] [%clk 00:00:21]} 32. Qg3 {[%clk 00:00:19]} d3
{[%emt 00:00:03] [%clk 00:00:19]} 33. Red1 {[%emt 00:00:01] [%clk 00:00:20]} Rd8
{[%clk 00:00:20]} 34. b3 {[%clk 00:00:21]} Red5 {[%emt 00:00:02] [%clk
00:00:21]} 35. Rc4 {[%emt 00:00:01] [%clk 00:00:21]} Qe5 {[%emt 00:00:04] [%clk
00:00:19]} 36. Qg6 {[%emt 00:00:03] [%clk 00:00:20]} Qf5 {[%emt 00:00:02] [%clk
00:00:19]} 37. Qg3 {[%emt 00:00:02] [%clk 00:00:21]} Kh7 {[%emt 00:00:03] [%clk
00:00:17]} 38. Rc3 {[%emt 00:00:04] [%clk 00:00:19]} Qe5 {[%emt 00:00:01] [%clk
00:00:18]} 39. Qg4 {[%clk 00:00:20]} 0-1

[Site "Europe Echecs"]

[Event "Championnat d'Europe de Blitz"]
[Date "2024.12.09"]
[White "Stankovic, Milos"]
[Black "Veleski, Robert"]
[WhiteElo "2462"]
[BlackElo "2093"]
[Round "11.44"]
[Result "1/2-1/2"]
[TimeControl "180+2"]

1. d4 {[%emt 00:00:02] [%clk 00:03:01]} Nf6 {[%emt 00:00:45] [%clk 00:02:20]} 2.
Nf3 {[%emt 00:00:01] [%clk 00:03:01]} g6 {[%clk 00:02:22]} 3. Nbd2 {[%emt
00:00:04] [%clk 00:03:00]} d5 {[%emt 00:00:05] [%clk 00:02:18]} 4. e3 {[%emt
00:00:02] [%clk 00:03:00]} Bg7 {[%clk 00:02:20]} 5. b4 {[%emt 00:00:01] [%clk
00:03:01]} O-O {[%emt 00:00:02] [%clk 00:02:20]} 6. Be2 {[%emt 00:00:02] [%clk
00:03:01]} Nbd7 {[%emt 00:00:04] [%clk 00:02:18]} 7. Bb2 {[%emt 00:00:05] [%clk
00:02:58]} Re8 {[%emt 00:00:04] [%clk 00:02:16]} 8. c4 {[%emt 00:00:06] [%clk
00:02:53]} c6 {[%emt 00:00:04] [%clk 00:02:15]} 9. O-O {[%emt 00:00:21] [%clk
00:02:34]} Ne4 {[%emt 00:00:10] [%clk 00:02:07]} 10. Nxe4 {[%emt 00:00:36] [%clk
00:02:00]} dxe4 {[%emt 00:00:02] [%clk 00:02:07]} 11. Nd2 {[%emt 00:00:09] [%clk
00:01:53]} Nf6 {[%emt 00:00:03] [%clk 00:02:06]} 12. a4 {[%emt 00:00:03] [%clk
00:01:52]} h5 {[%emt 00:00:02] [%clk 00:02:06]} 13. a5 {[%emt 00:00:06] [%clk
00:01:48]} a6 {[%emt 00:00:04] [%clk 00:02:04]} 14. b5 {[%emt 00:00:13] [%clk
00:01:36]} axb5 {[%emt 00:00:06] [%clk 00:02:00]} 15. cxb5 {[%clk 00:01:38]}
Rxa5 {[%emt 00:00:06] [%clk 00:01:56]} 16. bxc6 {[%emt 00:00:04] [%clk
00:01:35]} bxc6 {[%emt 00:00:02] [%clk 00:01:57]} 17. Nc4 {[%emt 00:00:11] [%clk
00:01:26]} Rxa1 {[%emt 00:00:03] [%clk 00:01:56]} 18. Qxa1 {[%emt 00:00:01]
[%clk 00:01:27]} Nd5 {[%emt 00:00:02] [%clk 00:01:57]} 19. Rc1 {[%emt 00:00:03]
[%clk 00:01:25]} Bg4 {[%emt 00:00:02] [%clk 00:01:57]} 20. Bf1 {[%emt 00:00:02]
[%clk 00:01:26]} h4 {[%emt 00:00:01] [%clk 00:01:57]} 21. h3 {[%clk 00:01:27]}
Bf5 {[%emt 00:00:02] [%clk 00:01:58]} 22. Qa6 {[%emt 00:00:03] [%clk 00:01:25]}
Qc8 {[%emt 00:00:02] [%clk 00:01:58]} 23. Qxc8 {[%emt 00:00:30] [%clk 00:00:57]}
Rxc8 {[%emt 00:00:02] [%clk 00:01:58]} 24. Na5 {[%emt 00:00:03] [%clk 00:00:57]}
Bd7 {[%emt 00:00:12] [%clk 00:01:47]} 25. Bc4 {[%emt 00:00:05] [%clk 00:00:53]}
Bh6 {[%emt 00:00:03] [%clk 00:01:47]} 26. Nxc6 {[%emt 00:00:10] [%clk 00:00:46]}
Rxc6 {[%emt 00:00:22] [%clk 00:01:26]} 27. Bxd5 {[%emt 00:00:01] [%clk
00:00:47]} Rxc1+ {[%emt 00:00:03] [%clk 00:01:25]} 28. Bxc1 {[%emt 00:00:01]
[%clk 00:00:48]} Bf5 {[%emt 00:00:03] [%clk 00:01:24]} 29. Ba3 {[%emt 00:00:01]
[%clk 00:00:49]} Bf8 {[%emt 00:00:09] [%clk 00:01:17]} 30. Bc6 {[%emt 00:00:06]
[%clk 00:00:45]} g5 {[%emt 00:00:06] [%clk 00:01:13]} 31. Kf1 {[%emt 00:00:03]
[%clk 00:00:43]} e6 {[%emt 00:00:05] [%clk 00:01:11]} 32. Bc5 {[%emt 00:00:02]
[%clk 00:00:42]} f6 {[%emt 00:00:17] [%clk 00:00:57]} 33. Ke1 {[%emt 00:00:03]
[%clk 00:00:41]} Kf7 {[%emt 00:00:01] [%clk 00:00:58]} 34. Kd2 {[%clk 00:00:42]}
Bg6 {[%emt 00:00:30] [%clk 00:00:30]} 35. Kc3 {[%emt 00:00:02] [%clk 00:00:43]}
f5 {[%clk 00:00:30]} 36. Kc4 {[%emt 00:00:06] [%clk 00:00:39]} g4 {[%emt
00:00:01] [%clk 00:00:31]} 37. Bxf8 {[%emt 00:00:08] [%clk 00:00:33]} Kxf8
{[%clk 00:00:32]} 38. d5 {[%emt 00:00:03] [%clk 00:00:33]} Ke7 {[%emt 00:00:01]
[%clk 00:00:32]} 39. Kd4 {[%emt 00:00:05] [%clk 00:00:30]} Kd6 {[%emt 00:00:06]
[%clk 00:00:28]} 40. dxe6 {[%emt 00:00:08] [%clk 00:00:25]} Kxe6 {[%emt
00:00:14] [%clk 00:00:15]} 41. Bb7 {[%emt 00:00:03] [%clk 00:00:24]} gxh3 {[%emt
00:00:03] [%clk 00:00:14]} 42. gxh3 {[%clk 00:00:25]} Kf6 {[%emt 00:00:01] [%clk
00:00:15]} 43. f3 {[%emt 00:00:13] [%clk 00:00:13]} exf3 {[%emt 00:00:02] [%clk
00:00:15]} 44. Bxf3 {[%emt 00:00:03] [%clk 00:00:13]} Be8 {[%emt 00:00:02] [%clk
00:00:15]} 45. Bg2 {[%emt 00:00:03] [%clk 00:00:12]} Ba4 {[%emt 00:00:01] [%clk
00:00:16]} 46. e4 {[%emt 00:00:05] [%clk 00:00:09]} fxe4 {[%emt 00:00:01] [%clk
00:00:17]} 47. Kxe4 {[%emt 00:00:03] [%clk 00:00:08]} Bc6+ {[%emt 00:00:02]
[%clk 00:00:18]} 48. Kf4 {[%clk 00:00:09]} Bxg2 {[%emt 00:00:03] [%clk
00:00:17]} 49. Kg4 {[%clk 00:00:10]} 1/2-1/2

[Site "Europe Echecs"]

[Event "Championnat d'Europe de Blitz"]
[Date "2024.12.09"]
[White "Manea, Alexandru"]
[Black "Arnaudov, G. Petar"]
[WhiteElo "2272"]
[BlackElo "2401"]
[Round "11.45"]
[Result "1-0"]
[TimeControl "180+2"]

1. Nf3 {[%clk 00:03:03]} Nf6 {[%emt 00:00:02] [%clk 00:03:03]} 2. g3 {[%clk
00:03:04]} d5 {[%emt 00:00:02] [%clk 00:03:03]} 3. Bg2 {[%clk 00:03:05]} e6
{[%emt 00:00:01] [%clk 00:03:05]} 4. O-O {[%emt 00:00:02] [%clk 00:03:05]} Be7
{[%emt 00:00:01] [%clk 00:03:06]} 5. b3 {[%emt 00:00:04] [%clk 00:03:03]} a5
{[%emt 00:00:02] [%clk 00:03:06]} 6. a4 {[%emt 00:00:09] [%clk 00:02:56]} O-O
{[%emt 00:00:02] [%clk 00:03:05]} 7. Bb2 {[%emt 00:00:01] [%clk 00:02:57]} c6
{[%emt 00:00:06] [%clk 00:03:01]} 8. d3 {[%clk 00:02:58]} b6 {[%emt 00:00:08]
[%clk 00:02:55]} 9. Nbd2 {[%emt 00:00:01] [%clk 00:02:59]} Bb7 {[%emt 00:00:03]
[%clk 00:02:55]} 10. e4 {[%emt 00:00:03] [%clk 00:02:58]} Na6 {[%emt 00:00:02]
[%clk 00:02:55]} 11. Re1 {[%emt 00:00:07] [%clk 00:02:52]} Nb4 {[%emt 00:00:04]
[%clk 00:02:54]} 12. e5 {[%emt 00:00:05] [%clk 00:02:48]} Nd7 {[%emt 00:00:02]
[%clk 00:02:55]} 13. h4 {[%clk 00:02:49]} c5 {[%emt 00:00:16] [%clk 00:02:41]}
14. h5 {[%emt 00:00:10] [%clk 00:02:41]} h6 {[%emt 00:00:05] [%clk 00:02:39]}
15. Nf1 {[%emt 00:00:13] [%clk 00:02:29]} d4 {[%emt 00:00:08] [%clk 00:02:34]}
16. N1d2 {[%emt 00:00:02] [%clk 00:02:29]} Bd5 {[%emt 00:00:11] [%clk 00:02:25]}
17. Nc4 {[%emt 00:00:03] [%clk 00:02:28]} Nb8 {[%emt 00:00:05] [%clk 00:02:21]}
18. Rc1 {[%emt 00:00:07] [%clk 00:02:23]} N8c6 {[%emt 00:00:01] [%clk 00:02:22]}
19. Qe2 {[%emt 00:00:10] [%clk 00:02:13]} Qb8 {[%emt 00:00:11] [%clk 00:02:15]}
20. Nfd2 {[%emt 00:00:03] [%clk 00:02:12]} Re8 {[%emt 00:00:19] [%clk 00:01:58]}
21. Qg4 {[%emt 00:00:20] [%clk 00:01:53]} Bf8 {[%emt 00:00:12] [%clk 00:01:50]}
22. Re2 {[%emt 00:00:03] [%clk 00:01:51]} Na2 {[%emt 00:00:10] [%clk 00:01:42]}
23. Rce1 {[%emt 00:00:04] [%clk 00:01:48]} Nc3 {[%emt 00:00:02] [%clk 00:01:43]}
24. Bxc3 {[%emt 00:00:02] [%clk 00:01:48]} dxc3 {[%emt 00:00:02] [%clk
00:01:44]} 25. Nf3 {[%emt 00:00:22] [%clk 00:01:28]} Ra7 {[%emt 00:00:19] [%clk
00:01:27]} 26. Na3 {[%emt 00:00:02] [%clk 00:01:27]} Qa8 {[%emt 00:00:15] [%clk
00:01:14]} 27. Qh3 {[%emt 00:00:15] [%clk 00:01:14]} Qd8 {[%emt 00:00:23] [%clk
00:00:53]} 28. Nb5 {[%emt 00:00:03] [%clk 00:01:14]} Rd7 {[%emt 00:00:12] [%clk
00:00:43]} 29. Qg4 {[%emt 00:00:11] [%clk 00:01:05]} Bxf3 {[%emt 00:00:08] [%clk
00:00:37]} 30. Bxf3 {[%emt 00:00:04] [%clk 00:01:02]} Nd4 {[%clk 00:00:39]} 31.
Nxd4 {[%emt 00:00:03] [%clk 00:01:00]} cxd4 {[%emt 00:00:17] [%clk 00:00:24]}
32. Bc6 {[%emt 00:00:04] [%clk 00:00:58]} Qc7 {[%emt 00:00:03] [%clk 00:00:24]}
33. Bxd7 {[%emt 00:00:02] [%clk 00:00:58]} Qxd7 {[%clk 00:00:25]} 34. Re4 {[%emt
00:00:08] [%clk 00:00:52]} Bc5 {[%emt 00:00:07] [%clk 00:00:21]} 35. Kg2 {[%emt
00:00:01] [%clk 00:00:53]} b5 {[%emt 00:00:02] [%clk 00:00:21]} 36. axb5 {[%emt
00:00:02] [%clk 00:00:52]} Qxb5 {[%clk 00:00:22]} 37. f4 {[%emt 00:00:08] [%clk
00:00:46]} a4 {[%emt 00:00:04] [%clk 00:00:20]} 38. bxa4 {[%clk 00:00:47]} Qxa4
{[%clk 00:00:22]} 39. R1e2 {[%clk 00:00:49]} Qd7 {[%emt 00:00:08] [%clk
00:00:15]} 40. Rf2 {[%emt 00:00:02] [%clk 00:00:50]} Rb8 {[%emt 00:00:05] [%clk
00:00:12]} 41. f5 {[%emt 00:00:01] [%clk 00:00:50]} exf5 {[%clk 00:00:14]} 42.
Qxf5 {[%emt 00:00:04] [%clk 00:00:48]} Qe6 {[%emt 00:00:02] [%clk 00:00:13]} 43.
Ref4 {[%emt 00:00:05] [%clk 00:00:45]} Rb2 {[%emt 00:00:08] [%clk 00:00:07]} 44.
Qe4 {[%emt 00:00:06] [%clk 00:00:41]} Bf8 {[%emt 00:00:02] [%clk 00:00:07]} 45.
Qxd4 {[%emt 00:00:05] [%clk 00:00:39]} Qa6 {[%emt 00:00:05]} 46. Qd5 {[%emt
00:00:07] [%clk 00:00:31]} 1-0

[Site "Europe Echecs"]

[Event "Championnat d'Europe de Blitz"]
[Date "2024.12.09"]
[White "Muter, Donny"]
[Black "Gatineau, Yovann"]
[WhiteElo "2206"]
[BlackElo "2363"]
[Round "11.46"]
[Result "0-1"]
[TimeControl "180+2"]

1. b3 {[%emt 00:07:18] [%clk 00:03:02]} e5 {[%emt 00:00:03] [%clk 00:03:02]} 2.
Bb2 {[%clk 00:03:04]} Nc6 {[%emt 00:00:03] [%clk 00:03:01]} 3. e3 {[%clk
00:03:05]} Nf6 {[%emt 00:00:02] [%clk 00:03:01]} 4. d4 {[%emt 00:00:12] [%clk
00:02:55]} exd4 {[%emt 00:00:01] [%clk 00:03:02]} 5. exd4 {[%clk 00:02:56]} d5
{[%emt 00:00:01] [%clk 00:03:03]} 6. Nf3 {[%emt 00:00:04] [%clk 00:02:55]} Bb4+
{[%emt 00:00:03] [%clk 00:03:02]} 7. c3 {[%emt 00:00:01] [%clk 00:02:55]} Bd6
{[%emt 00:00:01] [%clk 00:03:03]} 8. Be2 {[%clk 00:02:56]} O-O {[%emt 00:00:04]
[%clk 00:03:01]} 9. O-O {[%emt 00:00:01] [%clk 00:02:57]} Re8 {[%emt 00:00:02]
[%clk 00:03:02]} 10. Nbd2 {[%emt 00:00:01] [%clk 00:02:57]} Bf5 {[%emt 00:00:01]
[%clk 00:03:02]} 11. a3 {[%emt 00:00:04] [%clk 00:02:56]} Ne7 {[%emt 00:00:07]
[%clk 00:02:57]} 12. c4 {[%emt 00:00:01] [%clk 00:02:57]} c6 {[%emt 00:00:02]
[%clk 00:02:58]} 13. Re1 {[%clk 00:02:58]} Ng6 {[%emt 00:00:03] [%clk 00:02:57]}
14. Nf1 {[%emt 00:00:12] [%clk 00:02:48]} Nf4 {[%emt 00:00:16] [%clk 00:02:43]}
15. Ne3 {[%emt 00:00:20] [%clk 00:02:30]} Be4 {[%emt 00:00:07] [%clk 00:02:37]}
16. Bf1 {[%emt 00:00:06] [%clk 00:02:26]} h6 {[%emt 00:00:26] [%clk 00:02:14]}
17. g3 {[%emt 00:00:27] [%clk 00:02:02]} Ne6 {[%emt 00:00:08] [%clk 00:02:07]}
18. c5 {[%emt 00:00:16] [%clk 00:01:48]} Bc7 {[%emt 00:00:05] [%clk 00:02:04]}
19. b4 {[%emt 00:00:07] [%clk 00:01:43]} Ng5 {[%emt 00:00:08] [%clk 00:01:57]}
20. Nxg5 {[%emt 00:00:11] [%clk 00:01:35]} hxg5 {[%clk 00:01:59]} 21. f3 {[%emt
00:00:01] [%clk 00:01:35]} Bg6 {[%emt 00:00:03] [%clk 00:01:58]} 22. Bd3 {[%clk
00:01:36]} Bxd3 {[%emt 00:00:11] [%clk 00:01:49]} 23. Qxd3 {[%emt 00:00:01]
[%clk 00:01:37]} g6 {[%emt 00:00:01] [%clk 00:01:50]} 24. Re2 {[%emt 00:00:23]
[%clk 00:01:16]} Qd7 {[%emt 00:00:04] [%clk 00:01:48]} 25. Rae1 {[%emt 00:00:01]
[%clk 00:01:16]} Kg7 {[%emt 00:00:16] [%clk 00:01:35]} 26. Bc1 {[%emt 00:00:01]
[%clk 00:01:17]} Qh3 {[%emt 00:00:22] [%clk 00:01:16]} 27. Nf1 {[%emt 00:00:22]
[%clk 00:00:56]} Rxe2 {[%emt 00:00:14] [%clk 00:01:04]} 28. Rxe2 {[%emt
00:00:02] [%clk 00:00:56]} g4 {[%emt 00:00:09] [%clk 00:00:57]} 29. Bg5 {[%emt
00:00:01] [%clk 00:00:56]} Qh5 {[%emt 00:00:16] [%clk 00:00:43]} 30. Bxf6+
{[%emt 00:00:03] [%clk 00:00:55]} Kxf6 {[%clk 00:00:45]} 31. fxg4 {[%emt
00:00:43] [%clk 00:00:14]} Qxg4 {[%emt 00:00:01] [%clk 00:00:46]} 32. Ne3 {[%emt
00:00:05] [%clk 00:00:11]} Qg5 {[%emt 00:00:04] [%clk 00:00:44]} 33. Nf1 {[%emt
00:00:07] [%clk 00:00:06]} Kg7 {[%emt 00:00:06] [%clk 00:00:40]} 34. Qf3 {[%emt
00:00:03] [%clk 00:00:05]} a5 {[%emt 00:00:06] [%clk 00:00:36]} 35. Rf2 {[%emt
00:00:04] [%clk 00:00:03]} Qe7 {[%emt 00:00:06] [%clk 00:00:32]} 36. Ne3 {[%clk
00:00:04]} axb4 {[%emt 00:00:02] [%clk 00:00:32]} 37. axb4 {[%clk 00:00:05]}
Ra1+ {[%emt 00:00:02] [%clk 00:00:31]} 38. Kg2 {[%emt 00:00:01] [%clk 00:00:06]}
f5 {[%emt 00:00:06] [%clk 00:00:28]} 39. g4 {[%emt 00:00:02] [%clk 00:00:06]} f4
{[%emt 00:00:03] [%clk 00:00:27]} 40. Nf1 {[%emt 00:00:01] [%clk 00:00:07]} Qe4
{[%emt 00:00:04] [%clk 00:00:24]} 41. Re2 {[%emt 00:00:02] [%clk 00:00:07]}
Qxf3+ {[%emt 00:00:04] [%clk 00:00:22]} 42. Kxf3 {[%clk 00:00:09]} Rxf1+ {[%emt
00:00:01] [%clk 00:00:23]} 43. Kg2 {[%clk 00:00:10]} f3+ {[%emt 00:00:04] [%clk
00:00:21]} 0-1

[Site "Europe Echecs"]

[Event "Championnat d'Europe de Blitz"]
[Date "2024.12.09"]
[White "Mohammad, Fahim"]
[Black "Asllani, Muhamet"]
[WhiteElo "2196"]
[BlackElo "2112"]
[Round "11.48"]
[Result "1-0"]
[TimeControl "180+2"]

1. d4 {[%emt 00:00:02] [%clk 00:03:01]} Nf6 {[%emt 00:00:01] [%clk 00:03:03]} 2.
Nf3 {[%emt 00:00:01] [%clk 00:03:02]} e6 {[%clk 00:03:04]} 3. c4 {[%emt
00:00:02] [%clk 00:03:03]} d5 {[%emt 00:00:01] [%clk 00:03:05]} 4. Nc3 {[%emt
00:00:02] [%clk 00:03:03]} Be7 {[%emt 00:00:01] [%clk 00:03:05]} 5. Bg5 {[%emt
00:00:01] [%clk 00:03:04]} O-O {[%emt 00:00:02] [%clk 00:03:06]} 6. e3 {[%emt
00:00:02] [%clk 00:03:03]} h6 {[%emt 00:00:02] [%clk 00:03:06]} 7. Bh4 {[%emt
00:00:01] [%clk 00:03:04]} dxc4 {[%emt 00:00:04] [%clk 00:03:04]} 8. Bxc4 {[%emt
00:00:01] [%clk 00:03:04]} a6 {[%clk 00:03:06]} 9. O-O {[%emt 00:00:23] [%clk
00:02:44]} b5 {[%clk 00:03:07]} 10. Bb3 {[%emt 00:00:03] [%clk 00:02:44]} Bb7
{[%emt 00:00:01] [%clk 00:03:08]} 11. Qe2 {[%emt 00:00:08] [%clk 00:02:38]} Ne4
{[%emt 00:00:16] [%clk 00:02:54]} 12. Bxe7 {[%emt 00:00:57] [%clk 00:01:43]}
Qxe7 {[%clk 00:02:54]} 13. Rfd1 {[%emt 00:00:01] [%clk 00:01:44]} Nd7 {[%emt
00:00:12] [%clk 00:02:45]} 14. Nxe4 {[%emt 00:00:21] [%clk 00:01:24]} Bxe4
{[%emt 00:00:02] [%clk 00:02:46]} 15. Rac1 {[%clk 00:01:26]} c5 {[%emt 00:00:05]
[%clk 00:02:42]} 16. dxc5 {[%emt 00:00:05] [%clk 00:01:23]} Nxc5 {[%emt
00:00:05] [%clk 00:02:39]} 17. Bc2 {[%emt 00:00:01] [%clk 00:01:24]} Rac8 {[%emt
00:00:05] [%clk 00:02:36]} 18. h3 {[%emt 00:00:04] [%clk 00:01:22]} Qb7 {[%emt
00:00:03] [%clk 00:02:36]} 19. Bxe4 {[%emt 00:00:06] [%clk 00:01:17]} Nxe4
{[%emt 00:00:02] [%clk 00:02:36]} 20. Nd4 {[%emt 00:00:13] [%clk 00:01:06]} Nf6
{[%emt 00:00:08] [%clk 00:02:30]} 21. Qf3 {[%emt 00:00:05] [%clk 00:01:03]} Qb6
{[%emt 00:00:20] [%clk 00:02:12]} 22. Rc6 {[%emt 00:00:16] [%clk 00:00:49]} Rxc6
{[%emt 00:00:02] [%clk 00:02:13]} 23. Qxc6 {[%clk 00:00:50]} Qa7 {[%emt
00:00:13] [%clk 00:02:03]} 24. Nf3 {[%emt 00:00:12] [%clk 00:00:40]} Nd5 {[%emt
00:00:02] [%clk 00:02:03]} 25. a3 {[%emt 00:00:04] [%clk 00:00:37]} Rb8 {[%emt
00:00:38] [%clk 00:01:28]} 26. Ne5 {[%emt 00:00:02] [%clk 00:00:37]} b4 {[%emt
00:00:20] [%clk 00:01:10]} 27. e4 {[%emt 00:00:11] [%clk 00:00:28]} Nf6 {[%emt
00:00:15] [%clk 00:00:57]} 28. a4 {[%emt 00:00:07] [%clk 00:00:23]} Kh7 {[%emt
00:00:11] [%clk 00:00:48]} 29. Nd7 {[%emt 00:00:05] [%clk 00:00:20]} Nxd7 {[%emt
00:00:35] [%clk 00:00:15]} 30. Rxd7 {[%clk 00:00:21]} Qb6 {[%emt 00:00:02] [%clk
00:00:16]} 31. Qxb6 {[%emt 00:00:01] [%clk 00:00:22]} Rxb6 {[%clk 00:00:17]} 32.
Rxf7 {[%clk 00:00:23]} Rd6 {[%clk 00:00:19]} 33. Ra7 {[%emt 00:00:01] [%clk
00:00:24]} Rd2 {[%emt 00:00:03] [%clk 00:00:18]} 34. Rxa6 {[%emt 00:00:02] [%clk
00:00:23]} e5 {[%emt 00:00:04] [%clk 00:00:17]} 35. Ra5 {[%emt 00:00:06] [%clk
00:00:19]} Rxb2 {[%emt 00:00:02] [%clk 00:00:17]} 36. Rxe5 {[%clk 00:00:20]} Ra2
{[%emt 00:00:03] [%clk 00:00:16]} 37. a5 {[%clk 00:00:21]} b3 {[%emt 00:00:02]
[%clk 00:00:16]} 38. Rb5 {[%emt 00:00:02] [%clk 00:00:21]} b2 {[%clk 00:00:18]}
39. Kh2 {[%clk 00:00:22]} Kg6 {[%emt 00:00:01] [%clk 00:00:19]} 40. Kg3 {[%emt
00:00:02] [%clk 00:00:22]} Kf6 {[%clk 00:00:21]} 41. f3 {[%emt 00:00:03] [%clk
00:00:21]} Ke6 {[%emt 00:00:02] [%clk 00:00:21]} 42. a6 {[%clk 00:00:22]} Kd6
{[%clk 00:00:22]} 43. a7 {[%emt 00:00:02] [%clk 00:00:22]} Rxa7 {[%emt 00:00:01]
[%clk 00:00:23]} 44. Rxb2 {[%clk 00:00:23]} Ke5 {[%clk 00:00:25]} 45. Rb5+
{[%emt 00:00:01] [%clk 00:00:24]} Kf6 {[%clk 00:00:26]} 46. Rb6+ {[%emt
00:00:02] [%clk 00:00:24]} Kf7 {[%emt 00:00:01] [%clk 00:00:27]} 47. Kf4 {[%emt
00:00:01] [%clk 00:00:24]} Ra2 {[%clk 00:00:28]} 48. g3 {[%emt 00:00:02] [%clk
00:00:24]} Ra5 {[%emt 00:00:04] [%clk 00:00:27]} 49. h4 {[%emt 00:00:01] [%clk
00:00:25]} Ra3 {[%emt 00:00:02] [%clk 00:00:27]} 50. g4 {[%emt 00:00:01] [%clk
00:00:26]} Ra1 {[%emt 00:00:02] [%clk 00:00:27]} 51. Rb7+ {[%emt 00:00:02] [%clk
00:00:26]} Kf6 {[%clk 00:00:28]} 52. h5 {[%emt 00:00:03] [%clk 00:00:25]} Ra4
{[%emt 00:00:01] [%clk 00:00:29]} 53. Rb6+ {[%emt 00:00:02] [%clk 00:00:26]} Kf7
{[%clk 00:00:31]} 54. Kf5 {[%emt 00:00:02] [%clk 00:00:26]} Ra3 {[%emt 00:00:03]
[%clk 00:00:30]} 55. f4 {[%clk 00:00:27]} Ra7 {[%emt 00:00:02] [%clk 00:00:31]}
56. e5 {[%emt 00:00:01] [%clk 00:00:27]} Rc7 {[%clk 00:00:33]} 57. Rd6 {[%emt
00:00:01] [%clk 00:00:28]} Ra7 {[%emt 00:00:02] [%clk 00:00:34]} 58. e6+ {[%emt
00:00:08] [%clk 00:00:21]} Kf8 {[%emt 00:00:01] [%clk 00:00:35]} 59. Rd8+ {[%emt
00:00:02] [%clk 00:00:20]} Ke7 {[%clk 00:00:36]} 60. Rd7+ {[%emt 00:00:01] [%clk
00:00:22]} Rxd7 {[%clk 00:00:38]} 61. exd7 {[%clk 00:00:23]} Kxd7 {[%emt
00:00:01] [%clk 00:00:39]} 1-0

[Site "Europe Echecs"]